{"text_format":"1","workbook":"xlsx","n_sheets":6,"sheets":["Exemplo 1","Exemplo 2","Exemplo 3","Exemplo 4","Planilha6","Exemplo 5"],"not_rendered":{"charts":0,"images":0,"macros":1,"external_links":0,"defined_names":1,"comments":0,"pivot_tables":0},"unopened":[],"bounds":{"document_bytes":16777216,"sheet_cells":100000,"rows_first":2000,"rows_last":500,"rows_between":2000,"halvings":0,"cell_chars":16384,"cell_head_chars":4096},"cells_cut":0,"cells_raw":0,"read":"whole","date_system":"1900"}

{"sheet":"Exemplo 1","index":0,"n_rows":8,"n_cols":4,"rows_kept":8,"cut":false,"hidden":false,"merged":[]}
["Texto","4 Primeiros ","4 Últimos","Texto central"]
["1BCD-0088-KKKK-9900",{"$f":"LEFT(A2,4)","v":"1BCD"},{"$f":"RIGHT(A2,4)","v":"9900"},{"$f":"MID(A2,6,9)","v":"0088-KKKK"}]
["A3CD-2222-NUF4-9901",{"$f":"LEFT(A3,4)","v":"A3CD"},{"$f":"RIGHT(A3,4)","v":"9901"},{"$f":"MID(A3,6,9)","v":"2222-NUF4"}]
["ABCD-0088-KKKK-9901","ABCD","9901","0088-KKKK"]
["5BC4-2R52-NUV4-9902","5BC4","9902","2R52-NUV4"]
["A5CD-0088-KHTK-9902","A5CD","9902","0088-KHTK"]
["7BCD-2222-NUV4-9903","7BCD","9903","2222-NUV4"]
["ABCD-0088-KLHT6-9903","ABCD","9903","0088-KLHT"]

{"sheet":"Exemplo 2","index":1,"n_rows":7,"n_cols":4,"rows_kept":7,"cut":false,"hidden":false,"merged":[]}
["E-mail","Nome","Domínio","Nome do Dominio"]
["joao@gmail.com",{"$f":"LEFT(A2,SEARCH(\"@\",A2)-1)","v":"joao"},{"$f":"RIGHT(A2,LEN(A2)-SEARCH(\"@\",A2))","v":"gmail.com"},{"$f":"MID(A2,SEARCH(\"@\",A2)+1,SEARCH(\".\",A2)-SEARCH(\"@\",A2)-1)","v":"gmail"}]
["maria@uol.com.br",{"$f":"LEFT(A3,SEARCH(\"@\",A3)-1)","v":"maria"},"uol.com.br","uol"]
["cesar@bol.com.br","cesar","bol.com.br","bol"]
["pedro@terra.com.br","pedro","terra.com.br","terra"]
["carlos@globo.com","carlos","globo.com","globo"]
["bruna@yahoo.com.br","bruna","yahoo.com.br","yahoo"]

{"sheet":"Exemplo 3","index":2,"n_rows":7,"n_cols":3,"rows_kept":7,"cut":false,"hidden":false,"merged":[]}
["E-mail","Nome","Domínio"]
["joao@gmail.com","joao","gmail.com"]
["maria@uol.com.br","maria","uol.com.br"]
["cesar@bol.com.br","cesar","bol.com.br"]
["pedro@terra.com.br","pedro","terra.com.br"]
["carlos@globo.com","carlos","globo.com"]
["bruna@yahoo.com.br","bruna","yahoo.com.br"]

{"sheet":"Exemplo 4","index":3,"n_rows":7,"n_cols":3,"rows_kept":7,"cut":false,"hidden":false,"merged":[]}
["E-mail","Nome","Domínio"]
["joao@gmail.com","joao","gmail.com"]
["maria@uol.com.br","maria","uol.com.br"]
["cesar@bol.com.br","cesar","bol.com.br"]
["pedro@terra.com.br","pedro","terra.com.br"]
["carlos@globo.com","carlos","globo.com"]
["bruna@yahoo.com.br","bruna","yahoo.com.br"]

{"sheet":"Planilha6","index":4,"n_rows":1,"n_cols":3,"rows_kept":1,"cut":false,"hidden":true,"merged":[]}
["10/01/2019",null,"10/01/2019"]

{"sheet":"Exemplo 5","index":5,"n_rows":8,"n_cols":2,"rows_kept":8,"cut":false,"hidden":false,"merged":[[10,0,10,1]]}
[8,"Apenas Texto"]
["1BCD-0088-KKKK-9900",{"$f":"ExtrairTexto(A2)","v":"BCD--KKKK-"}]
["AB3CD-2222-NUF4-9901",{"$f":"ExtrairTexto(A3)","v":"ABCD--NUF-"}]
["Av Brasil 123",{"$f":"ExtrairTexto(A4)","v":"Av Brasil "}]
["Rua das Flores 123 - CEP: 13189-00",{"$f":"ExtrairTexto(A5)","v":"Rua das Flores  - CEP: -"}]
["ABCD123456",{"$f":"ExtrairTexto(A6)","v":"ABCD"}]
["12350099898ABNM",{"$f":"ExtrairTexto(A7)","v":"ABNM"}]
["JPFD-090ABVD",{"$f":"ExtrairTexto(A8)","v":"JPFD-ABVD"}]